fUSD/lending_fUSD_20240109
["ID","MTS","AMOUNT","RATE_DAILY","PERIOD"]
[310938214,1704822784660,-911.8,0.00041753,30]
[310938215,1704822784669,-1811.74,0.00041753,30]
[310938216,1704822784678,-500.0,0.00041753,30]
[310938217,1704822784688,-651.7,0.00041753,30]
[310938218,1704822784697,-1064.25,0.00041753,30]
[310938219,1704822784706,-2616.95,0.00041753,30]
[310938220,1704822784715,-500.0,0.00041753,7]
[310938221,1704822784725,-1225.92,0.00041753,30]
[310938222,1704822784734,-558.53,0.00041753,30]
[310938223,1704822784743,-867.77,0.00041753,30]
[310938224,1704822784752,-640.94203821,0.00041753,30]
[310938225,1704822784761,-2361.89,0.00041753,30]
[310938226,1704822784769,-1715.96,0.00041753,30]
[310938227,1704822784779,-938.31,0.00041753,30]
[310938228,1704822784791,-930.54,0.00041753,30]
[310938229,1704822784800,-3610.35,0.00041753,30]
[310938230,1704822784809,-1230.33,0.00041753,30]
[310938231,1704822784818,-500.0,0.00041753,30]
[310938232,1704822784829,-500.0,0.00041753,30]
[310938233,1704822784838,-825.9,0.00041753,30]
[310938234,1704822784848,-500.0,0.00041753,30]
[310938235,1704822784858,-1620.01,0.00041753,30]
[310938236,1704822784867,-500.0,0.00041753,30]
[310938237,1704822784876,-500.0,0.00041753,5]
[310938238,1704822784885,-47067.85,0.00041753,30]
[310938239,1704822784894,-2088.17,0.00041753,30]
[310938240,1704822784903,-772.41,0.00041753,30]
[310938241,1704822784913,-617.74,0.00041753,30]
[310938242,1704822784922,-500.0,0.00041753,30]
[310938243,1704822784931,-607.62,0.00041753,30]
[310938244,1704822784941,-635.57,0.00041753,30]
[310938245,1704822784950,-500.0,0.00041753,30]
[310938246,1704822784959,-639.75,0.00041753,30]
[310938247,1704822784968,-500.0,0.00041753,30]
[310938248,1704822784977,-1279.97,0.00041753,30]
[310938249,1704822784986,-9711.74,0.00041753,30]
[310938250,1704822784995,-2008.91,0.00041753,30]
[310938251,1704822785005,-500.0,0.00041753,30]
[310938252,1704822785014,-2385.47,0.00041753,30]
[310938253,1704822785024,-625.83,0.00041753,30]
[310938254,1704822785037,-1000.0,0.00041753,30]
[310938255,1704822785047,-500.0,0.00041753,30]
[310938256,1704822785057,-1531.31,0.00041753,30]
[310938257,1704822785067,-500.0,0.00041753,30]
[310938258,1704822785078,-500.0,0.00041753,30]
[310938259,1704822785088,-5818.31,0.00041753,30]
[310938260,1704822785098,-504.54,0.00041753,30]
[310938261,1704822785107,-2227.07,0.00041753,30]
[310938262,1704822785118,-500.0,0.00041753,30]
[310938263,1704822785128,-500.0,0.00041753,30]
[310938264,1704822785138,-500.0,0.00041753,30]
[310938265,1704822785149,-500.0,0.00041753,30]
[310938266,1704822785159,-1067.05,0.00041753,30]
[310938267,1704822785169,-540.82848411,0.00041753,30]
[310938268,1704822785179,-500.0,0.00041753,30]
[310938269,1704822785189,-1943.97,0.00041753,30]
[310938270,1704822785198,-7418.59,0.00041753,30]
[310938271,1704822785208,-500.0,0.00041753,30]
[310938272,1704822785219,-894.02,0.00041753,30]
[310938273,1704822785228,-1912.66,0.00041753,30]
[310938274,1704822785238,-729.4,0.00041753,30]
[310938275,1704822785248,-2826.17,0.00041753,30]
[310938276,1704822785257,-1727.15,0.00041753,30]
[310938277,1704822785267,-746.04,0.00041753,30]
[310938278,1704822785277,-500.0,0.00041753,30]
[310938279,1704822785289,-500.0,0.00041753,30]
[310938280,1704822785299,-1546.34,0.00041753,30]
[310938281,1704822785309,-800.98,0.00041753,30]
[310938282,1704822785319,-1055.45,0.00041753,30]
[310938283,1704822785328,-13152.21,0.00041753,30]
[310938284,1704822785338,-500.0,0.00041753,30]
[310938285,1704822785348,-5322.78,0.00041753,30]
[310938286,1704822785358,-1631.56,0.00041753,30]
[310938287,1704822785368,-4266.73,0.00041753,30]
[310938288,1704822785378,-828.04,0.00041753,30]
[310938289,1704822785388,-373.6337544,0.00041753,30]
[310938290,1704822785398,-517.04,0.00041753,30]
[310938291,1704822785407,-2057.01,0.00041753,30]
[310938292,1704822785416,-675.39,0.00041753,30]
[310938293,1704822785426,-500.0,0.00041753,30]
[310938294,1704822785436,-500.0,0.00041753,30]
[310938295,1704822785446,-500.0,0.00041753,30]
[310938296,1704822785455,-661.04,0.00041753,30]
[310938297,1704822785465,-1487.61,0.00041753,30]
[310938298,1704822785475,-987.57,0.00041753,30]
[310938299,1704822785485,-1048.77,0.00041753,30]
[310938300,1704822785494,-1523.98,0.00041753,30]
[310938301,1704822785505,-500.0,0.00041753,30]
[310938302,1704822785517,-3937.86,0.00041753,30]
[310938303,1704822785526,-2062.34,0.00041753,30]
[310938304,1704822785539,-500.0,0.00041753,30]
[310938305,1704822785549,-500.0,0.00041753,30]
[310938306,1704822785560,-2352.32,0.00041753,30]
[310938307,1704822785569,-1972.66,0.00041753,30]
[310938308,1704822785579,-2511.39,0.00041753,30]
[310938309,1704822785588,-500.0,0.00041753,2]
[310938310,1704822785598,-851.78,0.00041753,30]
[310938311,1704822785608,-500.0,0.00041753,30]
[310938312,1704822785618,-500.0,0.00041753,30]
[310938313,1704822785628,-543.3565684,0.00041753,30]
[310938314,1704822785637,-1264.22,0.00041753,30]
[310938315,1704822785647,-635.47,0.00041753,30]
[310938316,1704822785656,-1416.21,0.00041753,30]
[310938317,1704822785665,-805.58,0.00041753,30]
[310938318,1704822785675,-500.0,0.00041753,30]
[310938319,1704822785684,-500.0,0.00041753,30]
[310938320,1704822785693,-1042.3,0.00041753,30]
[310938321,1704822785703,-500.0,0.00041753,30]
[310938322,1704822785712,-556.85,0.00041753,30]
[310938323,1704822785721,-500.0,0.00041753,30]
[310938324,1704822785730,-808.82,0.00041753,30]
[310938325,1704822785740,-544.13,0.00041753,30]
[310938326,1704822785749,-2529.67,0.00041753,30]
[310938327,1704822785757,-500.0,0.00041753,30]
[310938328,1704822785766,-3905.38,0.00041753,30]
[310938329,1704822785776,-1707.29,0.00041753,30]
[310938330,1704822785787,-757.2,0.00041753,30]
[310938331,1704822785797,-529.59,0.00041753,30]
[310938332,1704822785806,-764.22,0.00041753,30]
[310938333,1704822785815,-3365.69,0.00041753,30]
[310938334,1704822785825,-232.34224133,0.00041753,30]
[310938335,1704822785835,-1808.46,0.00041753,30]
[310938336,1704822785844,-1356.84,0.00041753,30]
[310938337,1704822785854,-5165.15,0.00041753,30]
[310938338,1704822785863,-3314.93,0.00041753,30]
[310938339,1704822785872,-500.0,0.00041753,30]
[310938340,1704822785882,-500.0,0.00041753,30]
[310938341,1704822785892,-7247.09,0.00041753,30]
[310938342,1704822785902,-898.87,0.00041753,30]
[310938343,1704822785911,-3230.31,0.00041753,30]
[310938344,1704822785921,-3438.41,0.00041753,30]
[310938345,1704822785931,-680.98,0.00041753,30]
[310938346,1704822785940,-875.14,0.00041753,30]
[310938347,1704822785950,-862.72,0.00041753,30]
[310938348,1704822785960,-500.0,0.00041753,30]
[310938349,1704822785969,-1210.42,0.00041753,30]
[310938350,1704822785979,-1426.64,0.00041753,30]
[310938351,1704822785989,-500.0,0.00041753,30]
[310938352,1704822785999,-500.0,0.00041753,30]
[310938353,1704822786009,-5227.95,0.00041753,30]
[310938354,1704822786019,-5726.55,0.00041753,30]
[310938355,1704822786029,-1300.13,0.00041753,30]
[310938356,1704822786041,-3378.07,0.00041753,30]
[310938357,1704822786051,-1055.87,0.00041753,30]
[310938358,1704822786061,-1593.8,0.00041753,30]
[310938359,1704822786071,-1104.5,0.00041753,30]
[310938360,1704822786081,-500.0,0.00041753,30]
[310938361,1704822786091,-500.0,0.00041753,30]
[310938362,1704822786101,-1413.79,0.00041753,30]
[310938363,1704822786111,-1163.93,0.00041753,30]
[310938364,1704822786122,-500.0,0.00041753,30]
[310938365,1704822786132,-1244.04,0.00041753,30]
[310938366,1704822786142,-500.0,0.00041753,30]
[310938367,1704822786151,-571.07,0.00041753,30]
[310938368,1704822786160,-528.07,0.00041753,30]
[310938369,1704822786171,-1396.01,0.00041753,30]
[310938370,1704822786181,-13468.65,0.00041753,30]
[310938371,1704822786190,-9852.84,0.00041753,30]
[310938372,1704822786200,-1725.71,0.00041753,30]
[310938373,1704822786209,-3006.41,0.00041753,30]
[310938374,1704822786221,-3195.82,0.00041753,30]
[310938375,1704822786230,-871.18,0.00041753,30]
[310938376,1704822786240,-1303.9,0.00041753,30]
[310938377,1704822786250,-758.06,0.00041753,30]
[310938378,1704822786260,-545.63,0.00041753,30]
[310938379,1704822786270,-1287.34,0.00041753,30]
[310938380,1704822786280,-500.0,0.00041753,30]
[310938381,1704822786291,-500.0,0.00041753,30]
[310938382,1704822786300,-650.5,0.00041753,30]
[310938383,1704822786310,-1252.77,0.00041753,30]
[310938384,1704822786319,-2404.72,0.00041753,30]
[310938385,1704822786329,-7005.02,0.00041753,30]
[310938386,1704822786339,-7036.88,0.00041753,30]
[310938387,1704822786349,-500.0,0.00041753,30]
[310938388,1704822786359,-1784.46,0.00041753,30]
[310938389,1704822786369,-1363.7,0.00041753,30]
[310938390,1704822786379,-7123.04,0.00041753,30]
[310938391,1704822786389,-1306.72,0.00041753,30]
[310938392,1704822786399,-649.76,0.00041753,30]
[310938393,1704822786409,-690.46,0.00041753,30]
[310938394,1704822786419,-500.0,0.00041753,30]
[310938395,1704822786428,-500.0,0.00041753,30]
[310938396,1704822786437,-500.0,0.00041753,30]
[310938397,1704822786447,-6945.36,0.00041753,30]
[310938398,1704822786457,-617.86,0.00041753,30]
[310938399,1704822786467,-51842.67,0.00041753,30]
[310938400,1704822786477,-3296.93,0.00041753,30]
[310938401,1704822786487,-7243.5,0.00041753,30]
[310938402,1704822786496,-6850.83,0.00041753,30]
[310938403,1704822786506,-1368.88,0.00041753,30]
[310938404,1704822786520,-500.0,0.00041753,30]
[310938405,1704822786530,-1123.62,0.00041753,30]
[310938406,1704822786542,-1586.08,0.00041753,30]
[310938407,1704822786551,-1722.72,0.00041753,30]
[310938408,1704822786561,-1413.35,0.00041753,30]
[310938409,1704822786571,-1265.95,0.00041753,30]
[310938410,1704822786581,-500.0,0.00041753,30]
[310938411,1704822786590,-9412.26,0.00041753,30]
[310938412,1704822786600,-500.0,0.00041753,30]
[310938413,1704822786610,-740.64,0.00041753,30]
[310938414,1704822786620,-1100.01,0.00041753,30]
[310938415,1704822786630,-1212.17,0.00041753,30]
[310938416,1704822786640,-1030.68,0.00041753,30]
[310938417,1704822786650,-2237.24,0.00041753,30]
[310938418,1704822786661,-2607.42,0.00041753,30]
[310938419,1704822786672,-4372.59,0.00041753,30]
[310938420,1704822786682,-2328.54,0.00041753,30]
[310938421,1704822786693,-500.0,0.00041753,30]
[310938422,1704822786702,-1231.33,0.00041753,30]
[310938423,1704822786712,-500.0,0.00041753,30]
[310938424,1704822786722,-1182.19,0.00041753,30]
[310938425,1704822786732,-870.79,0.00041753,30]
[310938426,1704822786742,-500.0,0.00041753,30]
[310938427,1704822786751,-500.0,0.00041753,30]
[310938428,1704822786761,-500.0,0.00041753,30]
[310938429,1704822786771,-849.27,0.00041753,30]
[310938430,1704822786781,-500.0,0.00041753,30]
[310938431,1704822786793,-8107.36,0.00041753,30]
[310938432,1704822786803,-4904.29,0.00041753,30]
[310938433,1704822786813,-16320.88,0.00041753,30]
[310938434,1704822786827,-1023.83,0.00041753,30]
[310938435,1704822786838,-1461.1,0.00041753,30]
[310938436,1704822786848,-1480.8,0.00041753,30]
[310938437,1704822786859,-16987.16,0.00041753,30]
[310938438,1704822786869,-500.0,0.00041753,30]
[310938439,1704822786879,-1217.56,0.00041753,30]
[310938440,1704822786888,-500.0,0.00041753,30]
[310938441,1704822786899,-1457.87,0.00041753,30]
[310938442,1704822786908,-535.12,0.00041753,30]
[310938443,1704822786918,-502.98,0.00041753,30]
[310938444,1704822786927,-2134.28,0.00041753,30]
[310938445,1704822786937,-28536.06,0.00041753,30]
[310938446,1704822786946,-562.7,0.00041753,30]
[310938447,1704822786956,-1487.63,0.00041753,30]
[310938448,1704822786966,-500.0,0.00041753,30]
[310938449,1704822786976,-20736.0,0.00041753,30]
[310938450,1704822786985,-500.0,0.00041753,7]
[310938451,1704822786994,-500.0,0.00041753,30]
[310938452,1704822787004,-692.37,0.00041753,30]
[310938453,1704822787013,-520.83,0.00041753,30]
[310938454,1704822787023,-500.0,0.00041753,30]
[310938455,1704822787033,-1611.71,0.00041753,30]
[310938456,1704822787044,-2765.97,0.00041753,30]
[310938457,1704822787053,-1740.94,0.00041753,30]
[310938458,1704822787063,-1717.39,0.00041753,30]
[310938459,1704822787072,-609.42,0.00041753,30]
[310938460,1704822787081,-2773.47,0.00041753,30]
[310938461,1704822787091,-3238.34,0.00041753,30]
[310938462,1704822787101,-1398.9,0.00041753,30]
[310938463,1704822787111,-7172.21,0.00041753,30]
[310938464,1704822787120,-500.0,0.00041753,30]
[310938465,1704822787130,-923.42,0.00041753,30]
[310938466,1704822787140,-931.8,0.00041753,7]
[310938467,1704822787149,-788.36,0.00041753,30]
[310938468,1704822787159,-500.0,0.00041753,30]
[310938469,1704822787169,-809.83,0.00041753,30]
[310938470,1704822787179,-5265.67,0.00041753,30]
[310938471,1704822787190,-500.0,0.00041753,30]
[310938472,1704822787199,-524.72,0.00041753,30]
[310938473,1704822787209,-500.0,0.00041753,30]
[310938474,1704822787219,-870.53,0.00041753,30]
[310938475,1704822787229,-500.0,0.00041753,30]
[310938476,1704822787239,-1008.96,0.00041753,30]
[310938477,1704822787249,-850.11,0.00041753,30]
[310938478,1704822787258,-1779.89,0.00041753,30]
[310938479,1704822787267,-3021.98,0.00041753,30]
[310938480,1704822787276,-757.38,0.00041753,30]
[310938481,1704822787286,-500.0,0.00041753,30]
[310938482,1704822787296,-1545.97,0.00041753,30]
[310938483,1704822787305,-535.37,0.00041753,30]
[310938484,1704822787315,-1007.59,0.00041753,30]
[310938485,1704822787324,-500.0,0.00041753,30]
[310938486,1704822787333,-648.78,0.00041753,30]
[310938487,1704822787342,-1272.45,0.00041753,30]
[310938488,1704822787352,-1977.41,0.00041753,30]
[310938489,1704822787362,-3559.33,0.00041753,30]
[310938490,1704822787371,-500.0,0.00041753,30]
[310938491,1704822787381,-600.83177686,0.00041753,30]
[310938492,1704822787390,-6393.45,0.00041753,30]
[310938493,1704822787400,-500.0,0.00041753,30]
[310938494,1704822787409,-1626.03,0.00041753,30]
[310938495,1704822787418,-500.0,0.00041753,30]
[310938496,1704822787428,-3116.26,0.00041753,30]
[310938497,1704822787437,-1812.16,0.00041753,30]
[310938498,1704822787447,-1864.75,0.00041753,30]
[310938499,1704822787456,-6814.69,0.00041753,30]
[310938500,1704822787466,-551.97,0.00041753,30]
[310938501,1704822787475,-897.99,0.00041753,30]
[310938502,1704822787484,-500.0,0.00041753,30]
[310938503,1704822787493,-903.52,0.00041753,30]
[310938504,1704822787502,-694.55,0.00041753,30]
[310938505,1704822787515,-503.53781674,0.00041753,30]
[310938506,1704822787524,-11065.11,0.00041753,30]
[310938507,1704822787534,-3610.81,0.00041753,30]
[310938508,1704822787544,-1400.92,0.00041753,30]
[310938509,1704822787554,-2625.62,0.00041753,30]
[310938510,1704822787563,-25209.06,0.00041753,30]
[310938511,1704822787572,-5058.68,0.00041753,30]
[310938512,1704822787582,-608.76,0.00041753,30]
[310938513,1704822787592,-637.53,0.00041753,30]
[310938514,1704822787601,-500.0,0.00041753,30]
[310938515,1704822787610,-1756.5,0.00041753,30]
[310938516,1704822787620,-500.0,0.00041753,30]
[310938517,1704822787629,-4417.44,0.00041753,30]
[310938518,1704822787639,-4168.56,0.00041753,30]
[310938519,1704822787649,-500.0,0.00041753,30]
[310938520,1704822787659,-1928.23,0.00041753,30]
[310938521,1704822787669,-1650.82,0.00041753,30]
[310938522,1704822787679,-936.15,0.00041753,30]
[310938523,1704822787688,-500.0,0.00041753,30]
[310938524,1704822787698,-500.0,0.00041753,30]
[310938525,1704822787707,-500.0,0.00041753,30]
[310938526,1704822787716,-1403.88,0.00041753,30]
[310938527,1704822787725,-1040.11,0.00041753,30]
[310938528,1704822787735,-988.86,0.00041753,30]
[310938529,1704822787744,-2066.79,0.00041753,30]
[310938530,1704822787754,-769.02,0.00041753,30]
[310938531,1704822787763,-500.0,0.00041753,30]
[310938532,1704822787773,-3874.24,0.00041753,30]
[310938533,1704822787783,-747.93,0.00041753,30]
[310938534,1704822787794,-563.04,0.00041753,30]
[310938535,1704822787804,-500.0,0.00041753,30]
[310938536,1704822787813,-3735.85,0.00041753,30]
[310938537,1704822787823,-502.7,0.00041753,30]
[310938538,1704822787832,-1875.85,0.00041753,30]
[310938539,1704822787841,-6107.8,0.00041753,30]
[310938540,1704822787851,-1726.91,0.00041753,30]
[310938541,1704822787860,-3911.7,0.00041753,30]
[310938542,1704822787869,-914.17,0.00041753,30]
[310938543,1704822787878,-500.0,0.00041753,30]
[310938544,1704822787888,-500.0,0.00041753,30]
[310938545,1704822787897,-500.0,0.00041753,30]
[310938546,1704822787906,-500.0,0.00041753,30]
[310938547,1704822787915,-1131.67,0.00041753,30]
[310938548,1704822787925,-2215.92,0.00041753,30]
[310938549,1704822787934,-500.0,0.00041753,7]
[310938550,1704822787943,-3733.8,0.00041753,30]
[310938551,1704822787952,-1512.92,0.00041753,30]
[310938552,1704822787961,-2353.53,0.00041753,30]
[310938553,1704822787971,-1796.89,0.00041753,30]
[310938554,1704822787980,-1528.15,0.00041753,30]
[310938555,1704822787989,-4688.93,0.00041753,30]
[310938556,1704822787999,-4825.11,0.00041753,30]
[310938557,1704822788009,-2618.04,0.00041753,30]
[310938558,1704822788019,-500.0,0.00041753,15]
[310938559,1704822788028,-2560.7,0.00041753,30]
[310938560,1704822788038,-2121.56,0.00041753,30]
[310938561,1704822788047,-519.71,0.00041753,30]
[310938562,1704822788057,-500.0,0.00041753,30]
[310938563,1704822788229,-23952.72,0.00041753,30]
[310938564,1704822788239,-2435.46,0.00041753,30]
[310938565,1704822788249,-752.79,0.00041753,30]
[310938566,1704822788259,-500.0,0.00041753,30]
[310938567,1704822788268,-847.62,0.00041753,30]
[310938568,1704822788278,-500.0,0.00041753,30]
[310938569,1704822788288,-7922.58,0.00041753,30]
[310938570,1704822788297,-689.54,0.00041753,30]
[310938571,1704822788306,-2584.24,0.00041753,30]
[310938572,1704822788315,-947.91,0.00041753,30]
[310938573,1704822788325,-2075.66,0.00041753,30]
[310938574,1704822788335,-846.93,0.00041753,30]
[310938575,1704822788345,-500.0,0.00041753,30]
[310938576,1704822788355,-6851.14,0.00041753,30]
[310938577,1704822788365,-3535.22,0.00041753,30]
[310938578,1704822788375,-2262.47,0.00041753,30]
[310938579,1704822788385,-2095.74,0.00041753,30]
[310938580,1704822788394,-766.2,0.00041753,30]
[310938581,1704822788403,-1303.54,0.00041753,30]
[310938582,1704822788413,-4048.91,0.00041753,30]
[310938583,1704822788423,-5660.14,0.00041753,30]
[310938584,1704822788433,-629.69,0.00041753,30]
[310938585,1704822788442,-533.62,0.00041753,30]
[310938586,1704822788452,-773.42,0.00041753,30]
[310938587,1704822788462,-1632.87,0.00041753,30]
[310938588,1704822788471,-2323.31,0.00041753,30]
[310938589,1704822788480,-516.98,0.00041753,30]
[310938590,1704822788490,-2208.88,0.00041753,30]
[310938591,1704822788500,-687.15,0.00041753,30]
[310938592,1704822788510,-641.49,0.00041753,30]
[310938593,1704822788521,-11260.39,0.00041753,30]
[310938594,1704822788531,-909.51,0.00041753,30]
[310938595,1704822788543,-720.42,0.00041753,30]
[310938596,1704822788552,-5222.0,0.00041753,30]
[310938597,1704822788561,-1861.66,0.00041753,30]
[310938598,1704822788570,-500.0,0.00041753,30]
[310938599,1704822788580,-500.0,0.00041753,30]
[310938600,1704822788589,-2706.98,0.00041753,30]
[310938601,1704822788598,-1000.0,0.00041753,30]
[310938602,1704822788609,-873.72,0.00041753,30]
[310938603,1704822788618,-892.91,0.00041753,30]
[310938604,1704822788628,-5255.79,0.00041753,30]
[310938605,1704822788637,-877.85,0.00041753,30]
[310938606,1704822788647,-5746.28,0.00041753,30]
[310938607,1704822788656,-2821.26,0.00041753,30]
[310938608,1704822788666,-500.0,0.00041753,30]
[310938609,1704822788675,-500.0,0.00041753,30]
[310938610,1704822788685,-5683.38,0.00041753,30]
[310938611,1704822788695,-500.0,0.00041753,30]
[310938612,1704822788705,-2549.41,0.00041753,30]
[310938613,1704822788715,-2896.34,0.00041753,30]
[310938614,1704822788725,-500.0,0.00041753,30]
[310938615,1704822788734,-4548.33,0.00041753,30]
[310938616,1704822788744,-2314.18,0.00041753,30]
[310938617,1704822788754,-500.0,0.00041753,30]
[310938618,1704822788763,-2089.66,0.00041753,30]
[310938619,1704822788773,-606.99,0.00041753,30]
[310938620,1704822788783,-641.77,0.00041753,30]
[310938621,1704822788795,-500.0,0.00041753,30]
[310938622,1704822788805,-3012.02,0.00041753,30]
[310938623,1704822788815,-2874.45,0.00041753,30]
[310938624,1704822788824,-847.35,0.00041753,30]
[310938625,1704822788833,-4927.93,0.00041753,30]
[310938626,1704822788843,-1016.59,0.00041753,30]
[310938627,1704822788853,-1577.99,0.00041753,30]
[310938628,1704822788862,-3470.52,0.00041753,30]
[310938629,1704822788872,-500.0,0.00041753,30]
[310938630,1704822788881,-1414.19,0.00041753,30]
[310938631,1704822788891,-500.0,0.00041753,30]
[310938632,1704822788900,-500.0,0.00041753,30]
[310938633,1704822788909,-2293.4,0.00041753,30]
[310938634,1704822788919,-1523.26,0.00041753,30]
[310938635,1704822788928,-5553.45,0.00041753,30]
[310938636,1704822788938,-1021.68,0.00041753,30]
[310938637,1704822788947,-1073.92,0.00041753,30]
[310938638,1704822788956,-1321.2,0.00041753,30]
[310938639,1704822788966,-500.0,0.00041753,30]
[310938640,1704822788975,-5163.1,0.00041753,30]
[310938641,1704822788985,-1629.25,0.00041753,30]
[310938642,1704822788994,-500.0,0.00041753,30]
[310938643,1704822789004,-857.66,0.00041753,30]
[310938644,1704822789013,-2550.91,0.00041753,30]
[310938645,1704822789023,-644.1,0.00041753,30]
[310938646,1704822789033,-1296.82,0.00041753,30]
[310938647,1704822789044,-658.7,0.00041753,30]
[310938648,1704822789053,-2556.57,0.00041753,30]
[310938649,1704822789063,-671.14,0.00041753,30]
[310938650,1704822789073,-3000.0,0.0004178,120]
[310938651,1704822789083,-666.0,0.0004178,2]
[310938652,1704822789092,-1668.0,0.0004179,3]
[310938653,1704822789102,-1000.0,0.000418,30]
[310938654,1704822789111,-1000.0,0.000418,30]
[310938655,1704822789121,-4358.26,0.000418,4]
[310938656,1704822789131,-4358.26,0.000418,4]
[310938657,1704822789141,-4358.26,0.000418,4]
[310938658,1704822789150,-4358.26,0.000418,4]
[310938659,1704822789160,-4358.26,0.000418,4]
[310938660,1704822789170,-4358.26,0.000418,4]
[310938661,1704822789182,-4358.26,0.000418,4]
[310938662,1704822789191,-4358.26,0.000418,4]
[310938663,1704822789201,-4358.26,0.000418,4]
[310938664,1704822789211,-4358.26,0.000418,4]
[310938665,1704822789221,-4358.26,0.000418,4]
[310938666,1704822789231,-4358.26,0.000418,4]
[310938667,1704822789241,-4358.26,0.000418,4]
[310938668,1704822789250,-4358.26,0.000418,4]
[310938669,1704822789260,-4358.26,0.000418,4]
[310938670,1704822789270,-4358.26,0.000418,4]
[310938671,1704822789280,-4358.26,0.000418,4]
[310938672,1704822789291,-4358.26,0.000418,4]
[310938673,1704822789301,-4358.26,0.000418,4]
[310938674,1704822789310,-4358.26,0.000418,4]
[310938675,1704822789320,-500.0,0.00041835,30]
[310938676,1704822789330,-500.0,0.00041835,30]
[310938677,1704822789340,-500.0,0.00041835,30]
[310938678,1704822789349,-500.0,0.00041835,30]
[310938679,1704822789359,-807.49,0.00041835,30]
[310938680,1704822789368,-1064.88,0.00041835,30]
[310938681,1704822789377,-504.18,0.00041835,30]
[310938682,1704822789387,-500.0,0.00041835,30]
[310938683,1704822789397,-500.0,0.00041835,30]
[310938684,1704822789406,-1384.92,0.00041835,30]
[310938685,1704822789416,-1040.33,0.00041835,30]
[310938686,1704822789425,-678.56,0.00041835,30]
[310938687,1704822789435,-500.0,0.00041835,30]
[310938688,1704822789445,-500.0,0.00041835,30]
[310938689,1704822789455,-1183.13,0.00041835,30]
[310938690,1704822789465,-500.0,0.00041835,30]
[310938691,1704822789474,-500.0,0.00041835,30]
[310938692,1704822789483,-500.0,0.00041835,30]
[310938693,1704822789493,-500.0,0.00041835,30]
[310938694,1704822789503,-500.0,0.00041835,30]
[310938695,1704822789517,-500.0,0.00041835,30]
[310938696,1704822789526,-500.0,0.00041835,30]
[310938697,1704822789535,-500.0,0.00041835,30]
[310938698,1704822789545,-848.16,0.00041835,30]
[310938699,1704822789555,-374.72102295,0.00041835,30]
[310938700,1704822789564,-996.71,0.00041835,30]
[310938701,1704822789573,-582.4,0.00041835,30]
[310938702,1704822789583,-500.0,0.00041835,30]
[310938703,1704822789592,-500.0,0.00041835,30]
[310938704,1704822789602,-500.0,0.00041835,30]
[310938705,1704822789611,-500.0,0.00041835,30]
[310938706,1704822789620,-763.12,0.00041835,30]
[310938707,1704822789630,-500.0,0.00041835,30]
[310938708,1704822789639,-629.14,0.00041835,2]
[310938709,1704822789648,-500.0,0.00041835,30]
[310938710,1704822789657,-668.65,0.00041835,30]
[310938711,1704822789666,-823.05,0.00041835,30]
[310938712,1704822789676,-500.0,0.00041835,30]
[310938713,1704822789685,-500.0,0.00041835,30]